Workbook

Sheet HOME
J2: PHẦN MỀM QUẢN TRỊ & HOẠCH ĐỊNH DÒNG TIỀN DOANH NGHIỆP
J5: Công ty: | K5: CÔNG TY ABC
J6: Địa chỉ: | K6: Tầng 6, Tòa Nhà Sannam, Duy Tân, Cầu Giấy, Hà Nội
J7: SĐT: | K7: 024 2239 7373/ 0168 997 8430
J10: Thiết kế bởi: | K10: CÔNG TY TNHH WEBKYNANG VIỆT NAM
J11: Địa chỉ: | K11: Tầng 6, Tòa Nhà Sannam, Duy Tân, Cầu Giấy, Hà Nội
J12: SĐT: | K12: 024 2239 7373/ 0168 997 8430
J15: TÍNH NĂNG CHÍNH:
J17: - Theo dõi các khoản thu, chi trong doanh nghiệp
J18: - Phân loại thu, chi và tổng hợp vào Báo cáo dòng tiền
J19: - Báo cáo dòng tiền: Tương quan thu - chi - tồn
J20: - Biểu đồ biến động dòng tiền
J21: - Cảnh báo khi có sự thiếu hụt tiền
J23: NHÂN SỰ:
J25: - Người lập: | K25: Nguyễn Văn Phương
J26: - Giám đốc: | K26: Đặng Minh Thắng

Sheet TONGHOP
A1: =cty -> CÔNG TY ABC
A2: =dc -> Tầng 6, Tòa Nhà Sannam, Duy Tân, Cầu Giấy, Hà Nội
A3: =sdt -> 024 2239 7373/ 0168 997 8430
A6: TỔNG HỢP DÒNG TIỀN DOANH NGHIỆP
A7: =TODAY() -> 2018-06-13
A9: Ngày bắt đầu | B9: 2018-01-01
A10: Tồn quỹ tối thiểu | B10: 100 | C10: =Cash_minimum -> 100 | D10: 100 | E10: 100 | F10: 100 | G10: 100 | H10: 100 | I10: 100 | J10: 100 | K10: 100 | L10: 100 | M10: 100 | N10: 100 | O10: ĐVT: Tr VND
B12: Bắt đầu | C12: =Start_date -> 2018-01-01 | D12: =DATE(YEAR(C12),MONTH(C12)+1,1) -> 2018-02-01 | E12: =DATE(YEAR(D12),MONTH(D12)+1,1) -> 2018-03-01 | F12: 2018-04-01 | G12: 2018-05-01 | H12: 2018-06-01 | I12: 2018-07-01 | J12: 2018-08-01 | K12: 2018-09-01 | L12: 2018-10-01 | M12: 2018-11-01 | N12: 2018-12-01 | O12: TỔNG
A13: Tiền đầu kỳ | B13: 150 | C13: =B30 -> 150 | D13: =C30 -> 178 | E13: 297.6 | F13: 420 | G13: 478.6 | H13: 146.6 | I13: 190.8 | J13: 303.2 | K13: 356.8 | L13: 47 | M13: 80 | N13: 86
A15: DÒNG THU
A16: Bán hàng | C16: 120 | D16: 144 | E16: 156 | F16: 134 | G16: 80 | H16: 113 | I16: 156 | J16: 119 | K16: 113 | L16: 150 | M16: 155 | N16: 200 | O16: =SUM(C16:N16) -> 1640
A17: Thu hồi công nợ | C17: =C16*0.55 -> 66 | D17: =D16*0.55 -> 79.2 | E17: 85.8 | F17: 73.7 | G17: 44 | H17: 62.15 | I17: 85.8 | J17: 65.45 | K17: 62.15 | L17: =L16*0.55 -> 82.5 | M17: =M16*0.55 -> 85.25 | N17: =N16*0.55 -> 110 | O17: 902
A18: Tiền lãi | C18: 13 | D18: 13 | E18: 13 | F18: 13 | G18: 13 | H18: 13 | I18: 13 | J18: 13 | K18: 13 | L18: 13 | M18: 13 | N18: 13 | O18: 156
A19: Khác | C19: 5 | D19: 3 | E19: 4 | F19: 6 | G19: 8 | H19: 5 | I19: 3 | J19: 1 | K19: 4 | L19: 5 | M19: 11 | N19: 21 | O19: 76
A20: Tổng dòng thu | C20: =SUM(C16:C19) -> 204 | D20: =SUM(D16:D19) -> 239.2 | E20: 258.8 | F20: 226.7 | G20: 145 | H20: 193.15 | I20: 257.8 | J20: 198.45 | K20: 192.15 | L20: 250.5 | M20: 264.25 | N20: 344 | O20: =SUM(O16:O19) -> 2774
A21: Tổng tiền hiện có | B21: =(B13+B20) -> 150 | C21: 354 | D21: 417.2 | E21: 556.4 | F21: 646.7 | G21: 623.6 | H21: 339.75 | I21: 448.6 | J21: 501.65 | K21: 548.95 | L21: 297.5 | M21: 344.25 | N21: 430
A23: DÒNG CHI
A24: Quảng cáo | C24: 20 | D24: 20 | E24: 20 | F24: 20 | G24: 20 | H24: 20 | I24: 20 | J24: 20 | K24: 20 | L24: 20 | M24: 20 | N24: 20 | O24: =SUM(C24:N24) -> 240
A25: Chiết khấu | C25: =C16*15% -> 18 | D25: =D16*15% -> 21.6 | E25: 23.4 | F25: 20.1 | G25: 12 | H25: 16.95 | I25: 23.4 | J25: 17.85 | K25: 16.95 | L25: 22.5 | M25: 23.25 | N25: 30 | O25: 246
A26: Lương | C26: 55 | D26: 55 | E26: 55 | F26: 55 | G26: 55 | H26: 55 | I26: 55 | J26: 55 | K26: 55 | L26: 55 | M26: 65 | N26: 75 | O26: 690
A27: Trả tiền nhà cung cấp | C27: 80 | D27: 20 | E27: 35 | F27: 70 | G27: 90 | H27: 54 | I27: 44 | J27: 49 | K27: 60 | L27: 120 | M27: 150 | N27: 120 | O27: 892
A28: Khác | C28: 3 | D28: 3 | E28: 3 | F28: 3 | G28: 300 | H28: 3 | I28: 3 | J28: 3 | K28: 350 | O28: 671
A29: Tổng dòng chi | C29: =SUM(C24:C28) -> 176 | D29: =SUM(D24:D28) -> 119.6 | E29: 136.4 | F29: 168.1 | G29: 477 | H29: 148.95 | I29: 145.4 | J29: 144.85 | K29: 501.95 | L29: 217.5 | M29: 258.25 | N29: 245 | O29: 2739
A30: Tồn quỹ | B30: =(B21-B29) -> 150 | C30: 178 | D30: 297.6 | E30: 420 | F30: 478.6 | G30: 146.6 | H30: 190.8 | I30: 303.2 | J30: 356.8 | K30: 47 | L30: 80 | M30: 86 | N30: 185
A32: CÁC CHỈ TIÊU QUAN TRỌNG
A33: Doanh số
A34: Công nợ phải thu
A35: Công nợ phải trả
A36: Tồn kho
A37: Khấu hao
A40: Lưu ý quan trọng:
A41: Vùng giá trị có màu nền Đỏ nhạt là phần dự kiến Thu - Chi, tùy vào thực tế ta cập nhật
A42: Nhấn nút "Update thực tế" ở góc phải phía trên của báo cáo này, dữ liệu tự động được cập nhật từ phần PHÁT SINH bạn đã ghi nhận.

Sheet BAOCAO
B22: NHẬN XÉT:
C24: Tháng 5 dòng tiền giảm mạnh đến từ 2 nguyên nhân: Rút vốn và Doanh số sụt giảm
C26: Tình hình thu hồi công nợ phải thu chưa tốt, cần thay đổi chính sách
C28: Cơ cấu dòng chi đang có phát sinh khác chiếm tỉ trọng khá lớn, cần làm rõ nguyên nhân.

Sheet PHATSINH
A1: NGÀY | B1: DIỄN GIẢI | C1: LOẠI THU | D1: LOẠI CHI | E1: SỐ TIỀN | F1: GHI CHÚ

Sheet DM
A1: STT | B1: DANH MỤC KHOẢN THU | C1: DANH MỤC KHOẢN CHI | D1: GHI CHÚ
A2: 1 | B2: Bán hàng | C2: Quảng cáo
A3: 2 | B3: Thu hồi công nợ | C3: Chiết khấu
A4: 3 | B4: Tiền lãi | C4: Lương
A5: 4 | B5: Khác | C5: Trả tiền nhà cung cấp
A6: 5 | C6: Khác
A7: 6
A8: 7
A9: 8
A10: 9
A11: 10
A12: 11
A13: 12
A14: 13
A15: 14
A16: 15
A17: 16
A18: 17
A19: 18
A20: 19
A21: 20
A22: 21
A23: 22
A24: 23
A25: 24
A26: 25
